Workbook

Sheet Raw MPC data
A1: Case and image ID | B1: Swelling status (1=MBP+ intact fiber, 2=APP+ injured swelling) | C1: Injury group (1=Control, 2= TBI) | D1: Area of axon segment | E1: Mean Grey Value | F1: Perimeter of axon segment | G1: Circularity of axonal segment | H1: IntDen of Iba-1 | I1: RawIntDen of Iba-1 | J1: AR | K1: Round | L1: Solidity | M1: # of Iba-1+ processes contacting axon segment | N1: # of Iba-1 processes within 5um from the axon segment. | O1: # of Iba-1+ processes contacting axonal segment/um perimeter | P1: # of Iba-1 processes within 5um from the axonal segment/um perimeter
A2: RB16_00017_01 | B2: 1 | C2: 1 | D2: 35.173 | E2: 13056.485 | F2: 27.293 | G2: 0.593 | H2: 459231.292 | I2: 12899807 | J2: 3.134 | K2: 0.319 | L2: 0.885 | M2: 1 | N2: 2 | O2: =M2/F2 -> 0.03663943136 | P2: =N2/F2 -> 0.07327886271
A3: RB16_00017_01 | B3: 1 | C3: 1 | D3: 34.781 | E3: 9773.125 | F3: 23.021 | G3: 0.825 | H3: 339919.651 | I3: 9548343 | J3: 1.376 | K3: 0.727 | L3: 0.939 | M3: 0 | N3: 1 | O3: =M3/F3 -> 0 | P3: =N3/F3 -> 0.04343859954
A4: RB16_00017_05 | B4: 1 | C4: 1 | D4: 46.137 | E4: 5566.809 | F4: 35.825 | G4: 0.452 | H4: 256838.199 | I4: 7214585 | J4: 4.615 | K4: 0.217 | L4: 0.883 | M4: 1 | N4: 1 | O4: =M4/F4 -> 0.02791346825 | P4: =N4/F4 -> 0.02791346825
A5: RB16_00017_05 | B5: 1 | C5: 1 | D5: 74.333 | E5: 5309.701 | F5: 50.583 | G5: 0.365 | H5: 394683.375 | I5: 11086656 | J5: 4.367 | K5: 0.229 | L5: 0.72 | M5: 1 | N5: 1 | O5: =M5/F5 -> 0.01976948777 | P5: 0.01976948777
A6: RB18_00017_01 | B6: 1 | C6: 1 | D6: 56.426 | E6: 3763.533 | F6: 45.249 | G6: 0.346 | H6: 212360.271 | I6: 5965200 | J6: 4.047 | K6: 0.247 | L6: 0.681 | M6: 2 | N6: 2 | O6: =M6/F6 -> 0.04419987182 | P6: =N6/F6 -> 0.04419987182
A7: RB18_00017_01 | B7: 1 | C7: 1 | D7: 76.148 | E7: 3147.098 | F7: 69.677 | G7: 0.197 | H7: 239645.497 | I7: 6731642 | J7: 7.28 | K7: 0.137 | L7: 0.551 | M7: 4 | N7: 6 | O7: 0.05740775292 | P7: 0.08611162938
A8: RB18_00017_01 | B8: 1 | C8: 1 | D8: 28.337 | E8: 1486.087 | F8: 22.645 | G8: 0.694 | H8: 42111.962 | I8: 1182925 | J8: 1.674 | K8: 0.597 | L8: 0.929 | M8: 1 | N8: 1 | O8: 0.04415985869 | P8: 0.04415985869
A9: RB18_00017_05 | B9: 1 | C9: 1 | D9: 43.005 | E9: 4318.029 | F9: 36.436 | G9: 0.407 | H9: 185695.23 | I9: 5216179 | J9: 5.314 | K9: 0.188 | L9: 0.815 | M9: 1 | N9: 2 | O9: 0.02744538369 | P9: 0.05489076737
A10: RB18_00017_05 | B10: 1 | C10: 1 | D10: 18.049 | E10: 4283.797 | F10: 21.022 | G10: 0.513 | H10: 77318.797 | I10: 2171885 | J10: 3.343 | K10: 0.299 | L10: 0.913 | M10: 0 | N10: 0 | O10: 0 | P10: 0
A11: RB18_00017_05 | B11: 1 | C11: 1 | D11: 13.67 | E11: 3672.844 | F11: 24.467 | G11: 0.287 | H11: 50209.042 | I11: 1410372 | J11: 4.99 | K11: 0.2 | L11: 0.567 | M11: 0 | N11: 3 | O11: 0 | P11: 0.1226141333
A12: RB18_00017_07 | B12: 1 | C12: 1 | D12: 10.573 | E12: 3251.226 | F12: 22.283 | G12: 0.268 | H12: 34375.721 | I12: 965614 | J12: 4.493 | K12: 0.223 | L12: 0.561 | M12: 0 | N12: 1 | O12: 0 | P12: =N12/F12 -> 0.04487726069
A13: RB18_00017_07 | B13: 1 | C13: 1 | D13: 6.266 | E13: 5079.693 | F13: 12.045 | G13: 0.543 | H13: 31827.198 | I13: 894026 | J13: 2.927 | K13: 0.342 | L13: 0.869 | M13: 0 | N13: 0 | O13: 0 | P13: 0
A14: RB18_00017_07 | B14: 1 | C14: 1 | D14: 4.308 | E14: 3459.157 | F14: 9.509 | G14: 0.599 | H14: 14900.605 | I14: 418558 | J14: 3.017 | K14: 0.331 | L14: 0.823 | M14: 0 | N14: 0 | O14: 0 | P14: 0
A15: RB18_00017_09 | B15: 1 | C15: 1 | D15: 11.606 | E15: 4368.549 | F15: 22.852 | G15: 0.279 | H15: 50699.43 | I15: 1424147 | J15: 5.81 | K15: 0.172 | L15: 0.668 | M15: 0 | N15: 0 | O15: 0 | P15: 0
A16: RB18_00017_09 | B16: 1 | C16: 1 | D16: 10.929 | E16: 3630.831 | F16: 17.391 | G16: 0.454 | H16: 39681.915 | I16: 1114665 | J16: 2.641 | K16: 0.379 | L16: 0.722 | M16: 0 | N16: 1 | O16: 0 | P16: 0.05750100627
A17: RB18_00017_09 | B17: 1 | C17: 1 | D17: 41.865 | E17: 4029.488 | F17: 41.779 | G17: 0.301 | H17: 168696.262 | I17: 4738678 | J17: 7.565 | K17: 0.132 | L17: 0.816 | M17: 0 | N17: 2 | O17: 0 | P17: 0.04787093995
A18: RB18_00017_13 | B18: 1 | C18: 1 | D18: 6.515 | E18: 4712.038 | F18: 13.332 | G18: 0.461 | H18: 30697.864 | I18: 862303 | J18: 1 | K18: 0.287 | L18: 0.906 | M18: 0 | N18: 0 | O18: 0 | P18: 0
A19: RB18_00017_13 | B19: 1 | C19: 1 | D19: 19.616 | E19: 4417.969 | F19: 23.163 | G19: 0.459 | H19: 86660.769 | I19: 2434301 | J19: 2.715 | K19: 0.368 | L19: 0.69 | M19: 0 | N19: 0 | O19: 0 | P19: 0
A20: RB18_00017_15 | B20: 1 | C20: 1 | D20: 8.01 | E20: 4706.716 | F20: 25.611 | G20: 0.153 | H20: 37700.641 | I20: 1059011 | J20: 10.833 | K20: 0.092 | L20: 0.606 | M20: 0 | N20: 2 | O20: 0 | P20: 0.07809144508
A21: RB18_00017_15 | B21: 1 | C21: 1 | D21: 16.412 | E21: 5142.46 | F21: 23.555 | G21: 0.372 | H21: 84395.657 | I21: 2370674 | J21: 6.007 | K21: 0.166 | L21: 0.833 | M21: 0 | N21: 1 | O21: 0 | P21: 0.04245383146
A22: RB18_00017_17 | B22: 1 | C22: 1 | D22: 7.868 | E22: 6007.357 | F22: 15.03 | G22: 0.438 | H22: 47263.297 | I22: 1327626 | J22: 4.615 | K22: 0.217 | L22: 0.868 | M22: 0 | N22: 0 | O22: 0 | P22: 0
A23: RB18_00017_17 | B23: 1 | C23: 1 | D23: 8.686 | E23: 4653.652 | F23: 16.21 | G23: 0.415 | H23: 40423.318 | I23: 1135491 | J23: 4.548 | K23: 0.22 | L23: 0.85 | M23: 0 | N23: 0 | O23: 0 | P23: 0
A24: RB18_00017_19 | B24: 1 | C24: 1 | D24: 17.373 | E24: 4736.311 | F24: 35.28 | G24: 0.175 | H24: 82282.663 | I24: 2311320 | J24: 13.676 | K24: 0.073 | L24: 0.699 | M24: 0 | N24: 1 | O24: 0 | P24: 0.0283446712
A25: RB18_00017_19 | B25: 1 | C25: 1 | D25: 21.538 | E25: 5496.641 | F25: 36.961 | G25: 0.198 | H25: 118386.187 | I25: 3325468 | J25: 11.02 | K25: 0.091 | L25: 0.732 | M25: 1 | N25: 3 | O25: 0.02705554503 | P25: 0.0811666351
A26: RB18_00017_23 | B26: 1 | C26: 1 | D26: 15.522 | E26: 5763.931 | F26: 20.066 | G26: 0.484 | H26: 89465.077 | I26: 2513074 | J26: 4.377 | K26: 0.228 | L26: 0.874 | M26: 0 | N26: 0 | O26: 0 | P26: 0
A27: RB18_00017_23 | B27: 1 | C27: 1 | D27: 32.04 | E27: 5454.488 | F27: 29.28 | G27: 0.47 | H27: 174761.089 | I27: 4909039 | J27: 4.027 | K27: 0.248 | L27: 0.875 | M27: 0 | N27: 1 | O27: 0 | P27: 0.03415300546
A28: RB18_00017_25 | B28: 1 | C28: 1 | D28: 15.735 | E28: 4250.656 | F28: 17.964 | G28: 0.613 | H28: 66884.656 | I28: 1878790 | J28: 2.885 | K28: 0.347 | L28: 0.893 | M28: 0 | N28: 1 | O28: 0 | P28: 0.05566688933
A29: RB18_00017_25 | B29: 1 | C29: 1 | D29: 30.758 | E29: 4762.686 | F29: 28.772 | G29: 0.467 | H29: 146492.026 | I29: 4114961 | J29: 4.379 | K29: 0.228 | L29: 0.891 | M29: 0 | N29: 1 | O29: 0 | P29: 0.03475601279
A30: RB18_00017_27 | B30: 1 | C30: 1 | D30: 34.247 | E30: 3894.795 | F30: 38.113 | G30: 0.296 | H30: 133385.297 | I30: 3746793 | J30: 7.427 | K30: 0.135 | L30: 0.718 | M30: 0 | N30: 1 | O30: 0 | P30: 0.02623776664
A31: RB18_00017_27 | B31: 1 | C31: 1 | D31: 12.46 | E31: 5292.88 | F31: 19.7 | G31: 0.403 | H31: 65949.021 | I31: 1852508 | J31: 5.097 | K31: 0.196 | L31: 0.901 | M31: 0 | N31: 1 | O31: 0 | P31: 0.05076142132
A32: RB18_00017b_33 | B32: 1 | C32: 1 | D32: 12.318 | E32: 5672.416 | F32: 29.797 | G32: 0.174 | H32: 69870.274 | I32: 1962656 | J32: 11.569 | K32: 0.086 | L32: 0.547 | M32: 0 | N32: 0 | O32: =M32/F32 -> 0 | P32: =N32/F32 -> 0
A33: RB18_00017b_33 | B33: 1 | C33: 1 | D33: 9.897 | E33: 5366.414 | F33: 15.564 | G33: 0.513 | H33: 53110.11 | I33: 1491863 | J33: 3.692 | K33: 0.271 | L33: 0.878 | M33: 0 | N33: 0 | O33: 0 | P33: 0
A34: RB18_00017b_35 | B34: 1 | C34: 1 | D34: 18.263 | E34: 7132.803 | F34: 20.202 | G34: 0.562 | H34: 130264.436 | I34: 3659128 | J34: 3.473 | K34: 0.288 | L34: 0.881 | M34: 0 | N34: 0 | O34: 0 | P34: 0
A35: RB18_00017b_35 | B35: 1 | C35: 1 | D35: 14.24 | E35: 5662.805 | F35: 21.87 | G35: 0.374 | H35: 80638.021 | I35: 2265122 | J35: 6.079 | K35: 0.165 | L35: 0.837 | M35: 0 | N35: 1 | O35: 0 | P35: 0.04572473708
A36: RB18_00017b_37 | B36: 1 | C36: 1 | D36: 37.665 | E36: 6072.309 | F36: 41.708 | G36: 0.272 | H36: 228711.392 | I36: 6424503 | J36: 7.546 | K36: 0.133 | L36: 0.79 | M36: 1 | N36: 2 | O36: 0.02397621559 | P36: 0.04795243119
A37: RB18_00017b_37 | B37: 1 | C37: 1 | D37: 18.69 | E37: 4776.444 | F37: 24.821 | G37: 0.381 | H37: 89271.378 | I37: 2507633 | J37: 5.355 | K37: 0.187 | L37: 0.867 | M37: 0 | N37: 0 | O37: 0 | P37: 0
A38: RB18_00017b_39 | B38: 1 | C38: 1 | D38: 30.509 | E38: 7757.282 | F38: 41.065 | G38: 0.227 | H38: 236667.533 | I38: 6647991 | J38: 10.097 | K38: 0.099 | L38: 0.754 | M38: 0 | N38: 1 | O38: 0 | P38: 0.02435163765
A39: RB18_00017b_39 | B39: 1 | C39: 1 | D39: 11.25 | E39: 7045.44 | F39: 19.901 | G39: 0.357 | H39: 79258.063 | I39: 2226359 | J39: 3.874 | K39: 0.258 | L39: 0.614 | M39: 0 | N39: 0 | O39: 0 | P39: 0
A40: RB18_00021_09 | B40: 1 | C40: 1 | D40: 27.269 | E40: 3906.713 | F40: 25.624 | G40: 0.522 | H40: 106534.069 | I40: 2992542 | J40: 2.98 | K40: 0.336 | L40: 0.8 | M40: 0 | N40: 1 | O40: =M40/F40 -> 0 | P40: =N40/F40 -> 0.03902591321
A41: RB18_00021_09 | B41: 1 | C41: 1 | D41: 44.998 | E41: 4221.907 | F41: 46.901 | G41: 0.257 | H41: 189978.284 | I41: 5336490 | J41: 5.666 | K41: 0.177 | L41: 0.607 | M41: 0 | N41: 0 | O41: =M41/F41 -> 0 | P41: =N41/F41 -> 0
A42: RB18_00021_11 | B42: 1 | C42: 1 | D42: 19.722 | E42: 7686.067 | F42: 27.558 | G42: 0.326 | H42: 151587.077 | I42: 4258081 | J42: 7.197 | K42: 0.139 | L42: 0.823 | M42: 1 | N42: 2 | O42: 0.03628710356 | P42: 0.07257420713
A43: RB18_00021_11 | B43: 1 | C43: 1 | D43: 28.8 | E43: 4371.711 | F43: 36.434 | G43: 0.273 | H43: 125906.515 | I43: 3536714 | J43: 8.197 | K43: 0.122 | L43: 0.76 | M43: 0 | N43: 2 | O43: 0 | P43: 0.05489378053
A44: RB18_00021_13 | B44: 1 | C44: 1 | D44: 17.693 | E44: 4917.076 | F44: 23.571 | G44: 0.4 | H44: 86998.469 | I44: 2443787 | J44: 5.73 | K44: 0.175 | L44: 0.926 | M44: 1 | N44: 0 | O44: 0.04242501379 | P44: 0
A45: RB18_00021_13 | B45: 1 | C45: 1 | D45: 7.156 | E45: 3910.96 | F45: 15 | G45: 0.4 | H45: 27985.155 | I45: 786103 | J45: 5.149 | K45: 0.194 | L45: 0.848 | M45: 0 | N45: 1 | O45: 0 | P45: 0.06666666667
A46: RB18_00021_17 | B46: 1 | C46: 1 | D46: 79.245 | E46: 3645.108 | F46: 66.123 | G46: 0.228 | H46: 288857.601 | I46: 8114010 | J46: 6.219 | K46: 0.161 | L46: 0.597 | M46: 1 | N46: 2 | O46: 0.01512333076 | P46: 0.03024666152
A47: RB18_00021_17 | B47: 1 | C47: 1 | D47: 21.823 | E47: 3828.016 | F47: 31.885 | G47: 0.27 | H47: 83537.7 | I47: 2346574 | J47: 8.431 | K47: 0.119 | L47: 0.816 | M47: 0 | N47: 0 | O47: 0 | P47: 0
A48: RB18_00021_21 | B48: 1 | C48: 1 | D48: 17.23 | E48: 5284.574 | F48: 24.936 | G48: 0.348 | H48: 91054.966 | I48: 2557734 | J48: 5.684 | K48: 0.176 | L48: 0.84 | M48: 0 | N48: 1 | O48: 0 | P48: 0.04010266282
A49: RB18_00021_21 | B49: 1 | C49: 1 | D49: 65.504 | E49: 5501.697 | F49: 65.98 | G49: 0.189 | H49: 360381.702 | I49: 10123122 | J49: 7.434 | K49: 0.135 | L49: 0.5 | M49: 2 | N49: 3 | O49: 0.03031221582 | P49: 0.04546832373
A50: RB18_00021_23 | B50: 1 | C50: 1 | D50: 296.867 | E50: 4198.95 | F50: 181.148 | G50: 0.114 | H50: 1246530.616 | I50: 35015045 | J50: 12.32 | K50: 0.081 | L50: 0.532 | M50: 3 | N50: 5 | O50: 0.01656104401 | P50: 0.02760174001
A51: RB18_00021_23 | B51: 1 | C51: 1 | D51: 25.632 | E51: 3466.49 | F51: 26.613 | G51: 0.455 | H51: 88852.723 | I51: 2495873 | J51: 4.267 | K51: 0.234 | L51: 0.907 | M51: 0 | N51: 1 | O51: 0 | P51: 0.03757562094
A52: RB18_00021_25 | B52: 1 | C52: 1 | D52: 8.402 | E52: 3170.242 | F52: 15.357 | G52: 0.448 | H52: 26634.995 | I52: 748177 | J52: 4.355 | K52: 0.23 | L52: 0.935 | M52: 1 | N52: 3 | O52: 0.06511688481 | P52: 0.1953506544
A53: RB18_00021_25 | B53: 1 | C53: 1 | D53: 13.136 | E53: 5222.45 | F53: 28.029 | G53: 0.21 | H53: 68603.916 | I53: 1927084 | J53: 11.325 | K53: 0.088 | L53: 0.795 | M53: 0 | N53: 3 | O53: 0 | P53: 0.1070320026
A54: RB18_00034_09 | B54: 1 | C54: 1 | D54: 11.57 | E54: 4965.686 | F54: 19.054 | G54: 0.4 | H54: 57452.759 | I54: 1613848 | J54: 5.386 | K54: 0.186 | L54: 0.86 | M54: 1 | N54: 3 | O54: =M54/F54 -> 0.05248241839 | P54: =N54/F54 -> 0.1574472552
A55: RB18_00034_09 | B55: 1 | C55: 1 | D55: 16.412 | E55: 5052.401 | F55: 20.308 | G55: 0.5 | H55: 82917.658 | I55: 2329157 | J55: 3.704 | K55: 0.27 | L55: 0.821 | M55: 1 | N55: 3 | O55: 0.04924167816 | P55: 0.1477250345
A56: RB18_00034_11 | B56: 1 | C56: 1 | D56: 9.826 | E56: 3122.678 | F56: 19.127 | G56: 0.337 | H56: 30682.058 | I56: 861859 | J56: 5.438 | K56: 0.184 | L56: 0.716 | M56: 0 | N56: 2 | O56: 0 | P56: 0.1045642286
A57: RB18_00034_11 | B57: 1 | C57: 1 | D57: 63.19 | E57: 3424.914 | F57: 79.639 | G57: 0.125 | H57: 216419.473 | I57: 6079223 | J57: 14.305 | K57: 0.07 | L57: 0.582 | M57: 3 | N57: 5 | O57: 0.03766998581 | P57: 0.06278330968
A58: RB18_00034_13 | B58: 1 | C58: 1 | D58: 10.644 | E58: 4197.174 | F58: 19.154 | G58: 0.365 | H58: 44676.219 | I58: 1254955 | J58: 5.801 | K58: 0.172 | L58: 0.804 | M58: 0 | N58: 2 | O58: 0 | P58: 0.104416832
A59: RB18_00034_13 | B59: 1 | C59: 1 | D59: 22.392 | E59: 5300.218 | F59: 33.757 | G59: 0.247 | H59: 118684.122 | I59: 3333837 | J59: 8.801 | K59: 0.114 | L59: 0.787 | M59: 1 | N59: 2 | O59: 0.0296234855 | P59: 0.059246971
A60: RB18_00034_17 | B60: 1 | C60: 1 | D60: 26.059 | E60: 4025.172 | F60: 35.967 | G60: 0.253 | H60: 104892.346 | I60: 2946426 | J60: 7.961 | K60: 0.126 | L60: 0.669 | M60: 1 | N60: 4 | O60: 0.0278032641 | P60: 0.1112130564
A61: RB18_00034_17 | B61: 1 | C61: 1 | D61: 14.098 | E61: 4273.485 | F61: 27.504 | G61: 0.234 | H61: 60245.639 | I61: 1692300 | J61: 10.201 | K61: 0.098 | L61: 0.831 | M61: 1 | N61: 1 | O61: 0.03635834788 | P61: 0.03635834788
A62: RB18_00034_19 | B62: 1 | C62: 1 | D62: 20.506 | E62: 5490.717 | F62: 29.892 | G62: 0.288 | H62: 112589.996 | I62: 3162653 | J62: 7.335 | K62: 0.136 | L62: 0.779 | M62: 0 | N62: 1 | O62: 0 | P62: 0.03345376689
A63: RB18_00034_19 | B63: 1 | C63: 1 | D63: 7.583 | E63: 5230.822 | F63: 13.862 | G63: 0.496 | H63: 39664.115 | I63: 1114165 | J63: 3.753 | K63: 0.266 | L63: 0.875 | M63: 0 | N63: 0 | O63: 0 | P63: 0
A64: RB18_00034_21 | B64: 1 | C64: 1 | D64: 15.878 | E64: 7129.175 | F64: 22.133 | G64: 0.407 | H64: 113193.734 | I64: 3179612 | J64: 5.149 | K64: 0.194 | L64: 0.869 | M64: 0 | N64: 1 | O64: 0 | P64: 0.04518140333
A65: RB18_00034_21 | B65: 1 | C65: 1 | D65: 42.079 | E65: 7622.512 | F65: 48.121 | G65: 0.228 | H65: 320747.917 | I65: 9009809 | J65: 6.241 | K65: 0.16 | L65: 0.545 | M65: 2 | N65: 2 | O65: 0.04156189605 | P65: 0.04156189605
A66: RB18_00034_23 | B66: 1 | C66: 1 | D66: 16.803 | E66: 5179.883 | F66: 20.025 | G66: 0.527 | H66: 87038.27 | I66: 2444905 | J66: 3.622 | K66: 0.276 | L66: 0.896 | M66: 1 | N66: 4 | O66: 0.04993757803 | P66: 0.1997503121
A67: RB18_00034_23 | B67: 1 | C67: 1 | D67: 12.602 | E67: 5038.102 | F67: 19.223 | G67: 0.429 | H67: 63491.919 | I67: 1783488 | J67: 3.823 | K67: 0.262 | L67: 0.881 | M67: 0 | N67: 2 | O67: 0 | P67: 0.104042033
A68: RB18_00034_27 | B68: 1 | C68: 1 | D68: 20.648 | E68: 6015.171 | F68: 31.748 | G68: 0.257 | H68: 124200.748 | I68: 3488799 | J68: 9.414 | K68: 0.106 | L68: 0.824 | M68: 0 | N68: 1 | O68: 0 | P68: 0.03149804712
A69: RB18_00034_27 | B69: 1 | C69: 1 | D69: 12.353 | E69: 5010.248 | F69: 22.289 | G69: 0.312 | H69: 61892.346 | I69: 1738556 | J69: 6.951 | K69: 0.144 | L69: 0.71 | M69: 0 | N69: 2 | O69: 0 | P69: 0.08973036027
A70: RB18_00034_29 | B70: 1 | C70: 1 | D70: 27.163 | E70: 4973.86 | F70: 30.752 | G70: 0.361 | H70: 135103.418 | I70: 3795055 | J70: 2.821 | K70: 0.354 | L70: 0.625 | M70: 0 | N70: 1 | O70: 0 | P70: 0.0325182102
A71: RB18_00034_29 | B71: 1 | C71: 1 | D71: 17.907 | E71: 4577.748 | F71: 23.816 | G71: 0.397 | H71: 81972.481 | I71: 2302607 | J71: 5.058 | K71: 0.198 | L71: 0.868 | M71: 1 | N71: 3 | O71: 0.04198857911 | P71: 0.1259657373
A72: RB18_00034_31 | B72: 1 | C72: 1 | D72: 39.836 | E72: 4586.958 | F72: 60.588 | G72: 0.136 | H72: 182727.163 | I72: 5132806 | J72: 14.921 | K72: 0.067 | L72: 0.624 | M72: 1 | N72: 2 | O72: 0.01650491847 | P72: 0.03300983693
A73: RB18_00034_31 | B73: 1 | C73: 1 | D73: 6.8 | E73: 4762.047 | F73: 12.754 | G73: 0.525 | H73: 32379.886 | I73: 909551 | J73: 3.697 | K73: 0.27 | L73: 0.868 | M73: 1 | N73: 2 | O73: 0.07840677435 | P73: 0.1568135487
A74: RB18_00034_33 | B74: 1 | C74: 1 | D74: 12.318 | E74: 6195.633 | F74: 23.51 | G74: 0.28 | H74: 76315.023 | I74: 2143689 | J74: 8.487 | K74: 0.118 | L74: 0.807 | M74: 1 | N74: 1 | O74: 0.04253509145 | P74: 0.04253509145
A75: RB18_00034_33 | B75: 1 | C75: 1 | D75: 6.444 | E75: 4983.53 | F75: 12.832 | G75: 0.492 | H75: 32111.748 | I75: 902019 | J75: 4.082 | K75: 0.245 | L75: 0.872 | M75: 1 | N75: 1 | O75: 0.07793017456 | P75: 0.07793017456
A76: RB18_00034_37 | B76: 1 | C76: 1 | D76: 33.25 | E76: 5775.251 | F76: 45.591 | G76: 0.201 | H76: 192028.622 | I76: 5394084 | J76: 11.251 | K76: 0.089 | L76: 0.777 | M76: 0 | N76: 1 | O76: 0 | P76: 0.02193415367
A77: RB18_00034_37 | B77: 1 | C77: 1 | D77: 11.178 | E77: 4267.296 | F77: 18.756 | G77: 0.399 | H77: 47701.353 | I77: 1339931 | J77: 5.289 | K77: 0.189 | L77: 0.801 | M77: 0 | N77: 2 | O77: 0 | P77: 0.1066325443
A78: RB18_00034_39 | B78: 1 | C78: 1 | D78: 24.244 | E78: 4447.837 | F78: 29.119 | G78: 0.359 | H78: 107831.15 | I78: 3028977 | J78: 5.803 | K78: 0.172 | L78: 0.757 | M78: 2 | N78: 3 | O78: 0.06868367732 | P78: 0.103025516
A79: RB18_00034_39 | B79: 1 | C79: 1 | D79: 31.719 | E79: 4442.258 | F79: 46.723 | G79: 0.183 | H79: 140906.088 | I79: 3958052 | J79: 11.975 | K79: 0.084 | L79: 0.688 | M79: 2 | N79: 3 | O79: 0.04280547054 | P79: 0.06420820581
A80: RB18-00031_03 | B80: 1 | C80: 2 | D80: 19.544 | E80: 3339.12 | F80: 23.588 | G80: 0.441 | H80: 65260.84 | I80: 1833177 | J80: 4.938 | K80: 0.203 | L80: 0.917 | M80: 0 | N80: 0 | O80: =M80/F80 -> 0 | P80: =N80/F80 -> 0
A81: RB18-00031_03 | B81: 1 | C81: 2 | D81: 15.913 | E81: 3494.394 | F81: 22.282 | G81: 0.403 | H81: 55606.764 | I81: 1561994 | J81: 5.184 | K81: 0.193 | L81: 0.831 | M81: 0 | N81: 0 | O81: 0 | P81: 0
A82: RB18-00031_17 | B82: 1 | C82: 2 | D82: 25.632 | E82: 4573.776 | F82: 21.479 | G82: 0.698 | H82: 117234.567 | I82: 3293119 | J82: 2.387 | K82: 0.419 | L82: 0.944 | M82: 0 | N82: 1 | O82: 0 | P82: 0.04655710229
A83: RB18-00031_17 | B83: 1 | C83: 2 | D83: 8.295 | E83: 5755.828 | F83: 12.009 | G83: 0.723 | H83: 47743.254 | I83: 1341108 | J83: 2.137 | K83: 0.468 | L83: 0.923 | M83: 0 | N83: 0 | O83: 0 | P83: 0
A84: RB19_00034_17 | B84: 1 | C84: 2 | D84: 6.622 | E84: 2544.28 | F84: 14.148 | G84: 0.416 | H84: 16847.134 | I84: 473236 | J84: 4.471 | K84: 0.224 | L84: 0.873 | M84: 0 | N84: 0 | O84: =M84/F84 -> 0 | P84: =N84/F84 -> 0
A85: RB19_00034_17 | B85: 1 | C85: 2 | D85: 11 | E85: 2543.398 | F85: 16.078 | G85: 0.535 | H85: 27978.284 | I85: 785910 | J85: 3.67 | K85: 0.272 | L85: 0.867 | M85: 0 | N85: 0 | O85: 0 | P85: 0
A86: RB19_00034_19 | B86: 1 | C86: 2 | D86: 44.322 | E86: 3214.586 | F86: 46.407 | G86: 0.259 | H86: 142476.29 | I86: 4002159 | J86: 8.15 | K86: 0.123 | L86: 0.706 | M86: 1 | N86: 2 | O86: 0.02154847329 | P86: 0.04309694658
A87: RB19_00034_19 | B87: 1 | C87: 2 | D87: 42.898 | E87: 3335.323 | F87: 40.819 | G87: 0.324 | H87: 143078.106 | I87: 4019064 | J87: 7.045 | K87: 0.142 | L87: 0.779 | M87: 1 | N87: 2 | O87: 0.02449839536 | P87: 0.04899679071
A88: RB19_00034_21 | B88: 1 | C88: 2 | D88: 27.661 | E88: 3012.474 | F88: 33.818 | G88: 0.304 | H88: 83328.302 | I88: 2340692 | J88: 6.349 | K88: 0.158 | L88: 0.71 | M88: 0 | N88: 1 | O88: 0 | P88: 0.02957005145
A89: RB19_00034_21 | B89: 1 | C89: 2 | D89: 47.17 | E89: 3438.512 | F89: 45.265 | G89: 0.289 | H89: 162193.984 | I89: 4556029 | J89: 6.605 | K89: 0.151 | L89: 0.727 | M89: 0 | N89: 0 | O89: 0 | P89: 0
A90: RB19_00034_25 | B90: 1 | C90: 2 | D90: 8.615 | E90: 4064.021 | F90: 16.357 | G90: 0.405 | H90: 35012.211 | I90: 983493 | J90: 4.506 | K90: 0.222 | L90: 0.842 | M90: 1 | N90: 1 | O90: 0.06113590512 | P90: 0.06113590512
A91: RB19_00034_25 | B91: 1 | C91: 2 | D91: 27.412 | E91: 4924.697 | F91: 32.905 | G91: 0.318 | H91: 134995.265 | I91: 3792017 | J91: 6.693 | K91: 0.149 | L91: 0.793 | M91: 1 | N91: 3 | O91: 0.03039051816 | P91: 0.09117155448
A92: RB19_00034_27 | B92: 1 | C92: 2 | D92: 15.415 | E92: 3087.603 | F92: 25.081 | G92: 0.308 | H92: 47594.589 | I92: 1336932 | J92: 8.259 | K92: 0.121 | L92: 0.775 | M92: 0 | N92: 2 | O92: 0 | P92: 0.0797416371
A93: RB19_00034_27 | B93: 1 | C93: 2 | D93: 43.325 | E93: 3407.647 | F93: 52.718 | G93: 0.196 | H93: 147636.419 | I93: 4147107 | J93: 7.183 | K93: 0.139 | L93: 0.567 | M93: 1 | N93: 2 | O93: 0.01896885314 | P93: 0.03793770629
A94: RB19_00034_31 | B94: 1 | C94: 2 | D94: 19.295 | E94: 2395.185 | F94: 22.415 | G94: 0.483 | H94: 46215.379 | I94: 1298190 | J94: 3.969 | K94: 0.252 | L94: 0.873 | M94: 0 | N94: 2 | O94: 0 | P94: 0.08922596476
A95: RB19_00034_31 | B95: 1 | C95: 2 | D95: 24.244 | E95: 2254.148 | F95: 33.42 | G95: 0.273 | H95: 54648.451 | I95: 1535075 | J95: 9.246 | K95: 0.108 | L95: 0.854 | M95: 0 | N95: 0 | O95: 0 | P95: 0
A96: RB1600008_19 | B96: 1 | C96: 1 | D96: 21.538 | E96: 2153.109 | F96: 32.778 | G96: 0.252 | H96: 46373.478 | I96: 1302631 | J96: 8.895 | K96: 0.112 | L96: 0.771 | M96: 0 | N96: 2 | O96: 0 | P96: 0.06101653548
A97: RB1600008_19 | B97: 1 | C97: 1 | D97: 81.346 | E97: 3178.143 | F97: 83.752 | G97: 0.146 | H97: 258528.159 | I97: 7262056 | J97: 14.453 | K97: 0.069 | L97: 0.723 | M97: 1 | N97: 1 | O97: 0.01194001337 | P97: 0.01194001337
A98: RB1600008_27 | B98: 1 | C98: 1 | D98: 20.256 | E98: 3469.986 | F98: 26.738 | G98: 0.356 | H98: 70289.142 | I98: 1974422 | J98: 6.158 | K98: 0.162 | L98: 0.831 | M98: 0 | N98: 1 | O98: 0 | P98: 0.03739995512
A99: RB1600008_27 | B99: 1 | C99: 1 | D99: 17.764 | E99: 3881.365 | F99: 25.468 | G99: 0.344 | H99: 68949.84 | I99: 1936801 | J99: 6.479 | K99: 0.154 | L99: 0.808 | M99: 0 | N99: 0 | O99: 0 | P99: 0
A100: RB16_00017_06 | B100: 1 | C100: 1 | D100: 14.489 | E100: 6682.693 | F100: 31.328 | G100: 0.186 | H100: 96826.486 | I100: 2719856 | J100: 8.25 | K100: 0.121 | L100: 0.494 | M100: 0 | N100: 6 | O100: =M100/F100 -> 0 | P100: =N100/F100 -> 0.1915219612
A101: RB16_00017_06 | B101: 1 | C101: 1 | D101: 10.039 | E101: 6154.514 | F101: 27.117 | G101: 0.172 | H101: 61786.152 | I101: 1735573 | J101: 6.355 | K101: 0.157 | L101: 0.47 | M101: 0 | N101: 3 | O101: 0 | P101: 0.110631707
A102: RB18_00017_06 | B102: 1 | C102: 1 | D102: 7.654 | E102: 3184.991 | F102: 21.493 | G102: 0.208 | H102: 24377.821 | I102: 684773 | J102: 7.461 | K102: 0.134 | L102: 0.726 | M102: 0 | N102: 2 | O102: =M102/F102 -> 0 | P102: =N102/F102 -> 0.09305355232
A103: RB18_00017_06 | B103: 1 | C103: 1 | D103: 11.819 | E103: 2612.816 | F103: 29.773 | G103: 0.168 | H103: 30881.274 | I103: 867455 | J103: 14.119 | K103: 0.071 | L103: 0.713 | M103: 0 | N103: 3 | O103: 0 | P103: 0.1007624358
A104: RB18_00017_08 | B104: 1 | C104: 1 | D104: 9.683 | E104: 3305.658 | F104: 23.949 | G104: 0.212 | H104: 32009.22 | I104: 899139 | J104: 8.502 | K104: 0.118 | L104: 0.611 | M104: 0 | N104: 3 | O104: 0 | P104: 0.1252661907
A105: RB18_00017_08 | B105: 1 | C105: 1 | D105: 8.046 | E105: 2519.018 | F105: 27.617 | G105: 0.133 | H105: 20266.928 | I105: 569298 | J105: 16.877 | K105: 0.059 | L105: 0.631 | M105: 0 | N105: 1 | O105: 0 | P105: 0.03620958106
A106: RB18_00017_08 | B106: 1 | C106: 1 | D106: 4.308 | E106: 3152.727 | F106: 14.571 | G106: 0.255 | H106: 13580.634 | I106: 381480 | J106: 7.886 | K106: 0.127 | L106: 0.742 | M106: 0 | N106: 1 | O106: 0 | P106: 0.06862946949
A107: RB18_00017_10 | B107: 1 | C107: 1 | D107: 17.907 | E107: 4949.69 | F107: 43.244 | G107: 0.12 | H107: 88632.752 | I107: 2489694 | J107: 12.32 | K107: 0.081 | L107: 0.559 | M107: 1 | N107: 5 | O107: 0.02312459532 | P107: 0.1156229766
A108: RB18_00017_10 | B108: 1 | C108: 1 | D108: 7.796 | E108: 5185.498 | F108: 19.245 | G108: 0.265 | H108: 40428.053 | I108: 1135624 | J108: 8.461 | K108: 0.118 | L108: 0.739 | M108: 0 | N108: 4 | O108: 0 | P108: 0.2078461938
A109: RB18_00017_12 | B109: 1 | C109: 1 | D109: 6.586 | E109: 5446.859 | F109: 16.954 | G109: 0.288 | H109: 35872.873 | I109: 1007669 | J109: 7.362 | K109: 0.136 | L109: 0.849 | M109: 0 | N109: 1 | O109: 0 | P109: 0.05898313082
A110: RB18_00017_12 | B110: 1 | C110: 1 | D110: 4.023 | E110: 6012.496 | F110: 10.411 | G110: 0.466 | H110: 24186.97 | I110: 679412 | J110: 4.465 | K110: 0.224 | L110: 0.859 | M110: 1 | N110: 4 | O110: 0.09605225243 | P110: 0.3842090097
A111: RB18_00017_14 | B111: 1 | C111: 1 | D111: 5.554 | E111: 3686.353 | F111: 19.642 | G111: 0.181 | H111: 20472.446 | I111: 575071 | J111: 8.595 | K111: 0.116 | L111: 0.752 | M111: 0 | N111: 2 | O111: 0 | P111: 0.101822625
A112: RB18_00017_14 | B112: 1 | C112: 1 | D112: 21.04 | E112: 4799.819 | F112: 32.344 | G112: 0.253 | H112: 100985.867 | I112: 2836693 | J112: 5.543 | K112: 0.18 | L112: 0.646 | M112: 2 | N112: 5 | O112: 0.06183527084 | P112: 0.1545881771
A113: RB18_00017_16 | B113: 1 | C113: 1 | D113: 18.014 | E113: 4987.235 | F113: 38.95 | G113: 0.149 | H113: 89837.7 | I113: 2523541 | J113: 11.607 | K113: 0.086 | L113: 0.574 | M113: 0 | N113: 4 | O113: 0 | P113: 0.1026957638
A114: RB18_00017_16 | B114: 1 | C114: 1 | D114: 8.686 | E114: 4346.529 | F114: 22.753 | G114: 0.211 | H114: 37755.536 | I114: 1060553 | J114: 8.164 | K114: 0.122 | L114: 0.629 | M114: 0 | N114: 0 | O114: 0 | P114: 0
A115: RB18_00017_18 | B115: 1 | C115: 1 | D115: 6.266 | E115: 7102.58 | F115: 18.245 | G115: 0.237 | H115: 44501.744 | I115: 1250054 | J115: 8.441 | K115: 0.118 | L115: 0.834 | M115: 0 | N115: 1 | O115: 0 | P115: 0.05480953686
A116: RB18_00017_18 | B116: 1 | C116: 1 | D116: 13.991 | E116: 7760.865 | F116: 28.948 | G116: 0.21 | H116: 108580.278 | I116: 3050020 | J116: 10.244 | K116: 0.098 | L116: 0.667 | M116: 0 | N116: 5 | O116: 0 | P116: 0.1727235042
A117: RB18_00017_20 | B117: 1 | C117: 1 | D117: 10.253 | E117: 4822.851 | F117: 23.318 | G117: 0.237 | H117: 49447.526 | I117: 1388981 | J117: 9.595 | K117: 0.104 | L117: 0.725 | M117: 0 | N117: 1 | O117: 0 | P117: 0.04288532464
A118: RB18_00017_20 | B118: 1 | C118: 1 | D118: 7.796 | E118: 4468.731 | F118: 20.85 | G118: 0.225 | H118: 34839.872 | I118: 978652 | J118: 10.737 | K118: 0.093 | L118: 0.834 | M118: 0 | N118: 1 | O118: 0 | P118: 0.0479616307
A119: RB18_00017_22 | B119: 1 | C119: 1 | D119: 8.651 | E119: 8416.84 | F119: 15.597 | G119: 0.447 | H119: 72812.104 | I119: 2045292 | J119: 4.749 | K119: 0.211 | L119: 0.806 | M119: 0 | N119: 1 | O119: 0 | P119: 0.06411489389
A120: RB18_00017_22 | B120: 1 | C120: 1 | D120: 4.343 | E120: 8425.73 | F120: 11.192 | G120: 0.436 | H120: 36594.482 | I120: 1027939 | J120: 4.105 | K120: 0.244 | L120: 0.755 | M120: 0 | N120: 0 | O120: 0 | P120: 0
A121: RB18_00017_24 | B121: 1 | C121: 1 | D121: 14.703 | E121: 6388.801 | F121: 22.176 | G121: 0.376 | H121: 93932.894 | I121: 2638575 | J121: 6.277 | K121: 0.159 | L121: 0.872 | M121: 2 | N121: 4 | O121: 0.09018759019 | P121: 0.1803751804
A122: RB18_00017_24 | B122: 1 | C122: 1 | D122: 7.44 | E122: 5194.919 | F122: 15.789 | G122: 0.375 | H122: 38652.118 | I122: 1085738 | J122: 3.989 | K122: 0.251 | L122: 0.71 | M122: 0 | N122: 0 | O122: 0 | P122: 0
A123: RB18_00017_26 | B123: 1 | C123: 1 | D123: 4.343 | E123: 4940.82 | F123: 11.088 | G123: 0.444 | H123: 21458.882 | I123: 602780 | J123: 4.908 | K123: 0.204 | L123: 0.897 | M123: 1 | N123: 1 | O123: 0.09018759019 | P123: 0.09018759019
A124: RB18_00017_26 | B124: 1 | C124: 1 | D124: 8.188 | E124: 4379.683 | F124: 14.663 | G124: 0.479 | H124: 35860.698 | I124: 1007327 | J124: 3.706 | K124: 0.27 | L124: 0.813 | M124: 0 | N124: 3 | O124: 0 | P124: 0.2045966037
A125: RB18_00017_28 | B125: 1 | C125: 1 | D125: 11.036 | E125: 4397.277 | F125: 23.171 | G125: 0.258 | H125: 48528.159 | I125: 1363156 | J125: 8.327 | K125: 0.12 | L125: 0.722 | M125: 0 | N125: 2 | O125: 0 | P125: 0.08631479004
A126: RB18_00017_28 | B126: 1 | C126: 1 | D126: 24.03 | E126: 6445.572 | F126: 32.608 | G126: 0.284 | H126: 154886.472 | I126: 4350761 | J126: 8.286 | K126: 0.121 | L126: 0.888 | M126: 1 | N126: 2 | O126: 0.0306673209 | P126: 0.06133464181
A127: RB18_00017b_34 | B127: 1 | C127: 1 | D127: 7.084 | E127: 8177.719 | F127: 14.505 | G127: 0.423 | H127: 57933.998 | I127: 1627366 | J127: 4.588 | K127: 0.218 | L127: 0.771 | M127: 2 | N127: 3 | O127: =M127/F127 -> 0.1378834885 | P127: =N127/F127 -> 0.2068252327
A128: RB18_00017b_34 | B128: 1 | C128: 1 | D128: 18.904 | E128: 6016.823 | F128: 40.818 | G128: 0.143 | H128: 113739.16 | I128: 3194933 | J128: 7.328 | K128: 0.136 | L128: 0.445 | M128: 0 | N128: 3 | O128: 0 | P128: 0.07349698662
A129: RB18_00017b_36 | B129: 1 | C129: 1 | D129: 10.538 | E129: 5068.095 | F129: 18.633 | G129: 0.381 | H129: 53405.34 | I129: 1500156 | J129: 4.903 | K129: 0.204 | L129: 0.763 | M129: 0 | N129: 4 | O129: 0 | P129: 0.2146728922
A130: RB18_00017b_36 | B130: 1 | C130: 1 | D130: 10.075 | E130: 5281.912 | F130: 22.967 | G130: 0.24 | H130: 53213.991 | I130: 1494781 | J130: 9.891 | K130: 0.101 | L130: 0.663 | M130: 0 | N130: 2 | O130: 0 | P130: 0.08708146471
A131: RB18_00017b_38 | B131: 1 | C131: 1 | D131: 7.084 | E131: 4235.111 | F131: 17.875 | G131: 0.279 | H131: 30003.097 | I131: 842787 | J131: 6.122 | K131: 0.163 | L131: 0.692 | M131: 0 | N131: 4 | O131: 0 | P131: 0.2237762238
A132: RB18_00017b_38 | B132: 1 | C132: 1 | D132: 8.793 | E132: 4446.02 | F132: 15.724 | G132: 0.447 | H132: 39094.589 | I132: 1098167 | J132: 2.248 | K132: 0.445 | L132: 0.66 | M132: 0 | N132: 4 | O132: 0 | P132: 0.2543881964
A133: RB18_00017b_40 | B133: 1 | C133: 1 | D133: 49.84 | E133: 7710.076 | F133: 67.787 | G133: 0.136 | H133: 384268.637 | I133: 10794106 | J133: 2.895 | K133: 0.345 | L133: 0.316 | M133: 2 | N133: 6 | O133: 0.02950418222 | P133: 0.08851254665
A134: RB18_00017b_40 | B134: 1 | C134: 1 | D134: 33.749 | E134: 7355.45 | F134: 52.462 | G134: 0.154 | H134: 248236.632 | I134: 6972967 | J134: 13.854 | K134: 0.072 | L134: 0.618 | M134: 0 | N134: 4 | O134: 0 | P134: 0.07624566353
A135: RB18_00021_10 | B135: 1 | C135: 1 | D135: 5.269 | E135: 4624.061 | F135: 13.786 | G135: 0.348 | H135: 24363.154 | I135: 684361 | J135: 6.161 | K135: 0.162 | L135: 0.769 | M135: 0 | N135: 5 | O135: =M135/F135 -> 0 | P135: =N135/F135 -> 0.3626867837
A136: RB18_00021_10 | B136: 1 | C136: 1 | D136: 4.45 | E136: 4505.656 | F136: 10.292 | G136: 0.528 | H136: 20050.089 | I136: 563207 | J136: 3.223 | K136: 0.31 | L136: 0.814 | M136: 0 | N136: 6 | O136: 0 | P136: 0.5829770696
A137: RB18_00021_12 | B137: 1 | C137: 1 | D137: 3.133 | E137: 5591.034 | F137: 9.649 | G137: 0.423 | H137: 17515.522 | I137: 492011 | J137: 4.971 | K137: 0.201 | L137: 0.903 | M137: 1 | N137: 9 | O137: 0.1036376827 | P137: 0.932739144
A138: RB18_00021_12 | B138: 1 | C138: 1 | D138: 3.204 | E138: 5223.733 | F138: 11.033 | G138: 0.331 | H138: 16736.775 | I138: 470136 | J138: 6.724 | K138: 0.149 | L138: 0.744 | M138: 0 | N138: 6 | O138: 0 | P138: 0.5438230762
A139: RB18_00021_14 | B139: 1 | C139: 1 | D139: 5.767 | E139: 3270.358 | F139: 15.634 | G139: 0.297 | H139: 18860.733 | I139: 529798 | J139: 7.659 | K139: 0.131 | L139: 0.726 | M139: 1 | N139: 10 | O139: 0.06396315722 | P139: 0.6396315722
A140: RB18_00021_14 | B140: 1 | C140: 1 | D140: 10.004 | E140: 3600.406 | F140: 23.024 | G140: 0.237 | H140: 36016.874 | I140: 1011714 | J140: 9.775 | K140: 0.102 | L140: 0.771 | M140: 1 | N140: 10 | O140: 0.04343293954 | P140: 0.4343293954
A141: RB18_00021_16 | B141: 1 | C141: 1 | D141: 5.198 | E141: 4166.589 | F141: 12.112 | G141: 0.445 | H141: 21656.177 | I141: 608322 | J141: 4.908 | K141: 0.204 | L141: 0.861 | M141: 0 | N141: 1 | O141: 0 | P141: 0.08256274769
A142: RB18_00021_16 | B142: 1 | C142: 1 | D142: 15.023 | E142: 3883.931 | F142: 29.401 | G142: 0.218 | H142: 58348.843 | I142: 1639019 | J142: 7.952 | K142: 0.126 | L142: 0.642 | M142: 0 | N142: 7 | O142: 0 | P142: 0.2380871399
A143: RB18_00021_18 | B143: 1 | C143: 1 | D143: 5.874 | E143: 2154.515 | F143: 15.058 | G143: 0.326 | H143: 12655.571 | I143: 355495 | J143: 5.64 | K143: 0.177 | L143: 0.648 | M143: 0 | N143: 1 | O143: 0 | P143: 0.06640988179
A144: RB18_00021_18 | B144: 1 | C144: 1 | D144: 5.162 | E144: 3502.917 | F144: 11.762 | G144: 0.469 | H144: 18081.986 | I144: 507923 | J144: 3.758 | K144: 0.266 | L144: 0.795 | M144: 1 | N144: 3 | O144: 0.0850195545 | P144: 0.2550586635
A145: RB18_00021_20 | B145: 1 | C145: 1 | D145: 5.34 | E145: 4586.353 | F145: 13.419 | G145: 0.373 | H145: 24491.029 | I145: 687953 | J145: 4.97 | K145: 0.201 | L145: 0.765 | M145: 0 | N145: 6 | O145: 0 | P145: 0.4471272077
A146: RB18_00021_20 | B146: 1 | C146: 1 | D146: 17.729 | E146: 5719.161 | F146: 32.812 | G146: 0.207 | H146: 101393.45 | I146: 2848142 | J146: 6.789 | K146: 0.147 | L146: 0.581 | M146: 1 | N146: 4 | O146: 0.03047665488 | P146: 0.1219066195
A147: RB18_00021_22 | B147: 1 | C147: 1 | D147: 20.078 | E147: 5217.638 | F147: 35.419 | G147: 0.201 | H147: 104761.41 | I147: 2942748 | J147: 10.192 | K147: 0.098 | L147: 0.712 | M147: 1 | N147: 8 | O147: 0.02823343403 | P147: 0.2258674723
A148: RB18_00021_22 | B148: 1 | C148: 1 | D148: 6.016 | E148: 4709.74 | F148: 14.29 | G148: 0.37 | H148: 28335.564 | I148: 795946 | J148: 5.982 | K148: 0.167 | L148: 0.822 | M148: 0 | N148: 4 | O148: 0 | P148: 0.2799160252
A149: RB18_00021_30 | B149: 1 | C149: 1 | D149: 7.512 | E149: 6664.938 | F149: 15.773 | G149: 0.379 | H149: 50064.151 | I149: 1406302 | J149: 5.074 | K149: 0.197 | L149: 0.841 | M149: 1 | N149: 4 | O149: 0.06339948012 | P149: 0.2535979205
A150: RB18_00021_30 | B150: 1 | C150: 1 | D150: 13.172 | E150: 6122.916 | F150: 24.336 | G150: 0.279 | H150: 80650.73 | I150: 2265479 | J150: 7.922 | K150: 0.126 | L150: 0.709 | M150: 1 | N150: 3 | O150: 0.04109138725 | P150: 0.1232741617
A151: RB18_00034_10 | B151: 1 | C151: 1 | D151: 9.149 | E151: 3870.288 | F151: 19.905 | G151: 0.29 | H151: 35409.897 | I151: 994664 | J151: 7.5 | K151: 0.133 | L151: 0.792 | M151: 0 | N151: 2 | O151: =M151/F151 -> 0 | P151: =N151/F151 -> 0.100477267
A152: RB18_00034_10 | B152: 1 | C152: 1 | D152: 21.218 | E152: 3590.32 | F152: 38.699 | G152: 0.178 | H152: 76177.679 | I152: 2139831 | J152: 10.141 | K152: 0.099 | L152: 0.697 | M152: 0 | N152: 3 | O152: 0 | P152: 0.07752138298
A153: RB18_00034_12 | B153: 1 | C153: 1 | D153: 50.338 | E153: 5289.066 | F153: 72.999 | G153: 0.119 | H153: 266242.043 | I153: 7478739 | J153: 19.047 | K153: 0.053 | L153: 0.594 | M153: 1 | N153: 4 | O153: 0.01369881779 | P153: 0.05479527117
A154: RB18_00034_12 | B154: 1 | C154: 1 | D154: 25.169 | E154: 6394.885 | F154: 34.335 | G154: 0.268 | H154: 160953.507 | I154: 4521184 | J154: 6.318 | K154: 0.158 | L154: 0.719 | M154: 0 | N154: 6 | O154: 0 | P154: 0.1747487986
A155: RB18_00034_16 | B155: 1 | C155: 1 | D155: 8.544 | E155: 3526.846 | F155: 22.216 | G155: 0.218 | H155: 30133.25 | I155: 846443 | J155: 8.839 | K155: 0.113 | L155: 0.644 | M155: 1 | N155: 4 | O155: 0.04501260353 | P155: 0.1800504141
A156: RB18_00034_16 | B156: 1 | C156: 1 | D156: 3.062 | E156: 3177.988 | F156: 11.646 | G156: 0.284 | H156: 9729.69 | I156: 273307 | J156: 7.518 | K156: 0.133 | L156: 0.619 | M156: 1 | N156: 4 | O156: 0.08586639189 | P156: 0.3434655676
A157: RB18_00034_18 | B157: 1 | C157: 1 | D157: 14.169 | E157: 5937.872 | F157: 20.192 | G157: 0.437 | H157: 84132.182 | I157: 2363273 | J157: 4.452 | K157: 0.225 | L157: 0.773 | M157: 0 | N157: 3 | O157: 0 | P157: 0.1485736926
A158: RB18_00034_18 | B158: 1 | C158: 1 | D158: 12.674 | E158: 5389.219 | F158: 29.109 | G158: 0.188 | H158: 68300.534 | I158: 1918562 | J158: 12.102 | K158: 0.083 | L158: 0.656 | M158: 1 | N158: 2 | O158: 0.03435363633 | P158: 0.06870727266
A159: RB18_00034_20 | B159: 1 | C159: 1 | D159: 10.288 | E159: 5598.869 | F159: 23.733 | G159: 0.23 | H159: 57603.168 | I159: 1618073 | J159: 5.432 | K159: 0.184 | L159: 0.542 | M159: 0 | N159: 1 | O159: 0 | P159: 0.04213542325
A160: RB18_00034_20 | B160: 1 | C160: 1 | D160: 14.062 | E160: 5078.271 | F160: 25.905 | G160: 0.263 | H160: 71410.36 | I160: 2005917 | J160: 8.01 | K160: 0.125 | L160: 0.708 | M160: 0 | N160: 3 | O160: 0 | P160: 0.1158077591
A161: RB18_00034_22 | B161: 1 | C161: 1 | D161: 7.049 | E161: 6579.303 | F161: 13.988 | G161: 0.453 | H161: 46376.006 | I161: 1302702 | J161: 4.527 | K161: 0.221 | L161: 0.863 | M161: 0 | N161: 5 | O161: 0 | P161: 0.3574492422
A162: RB18_00034_22 | B162: 1 | C162: 1 | D162: 23.318 | E162: 6762.226 | F162: 53.429 | G162: 0.103 | H162: 157680.954 | I162: 4429258 | J162: 9.888 | K162: 0.101 | L162: 0.446 | M162: 2 | N162: 7 | O162: 0.03743285482 | P162: 0.1310149919
A163: RB18_00034_24 | B163: 1 | C163: 1 | D163: 4.806 | E163: 6807.644 | F163: 16.664 | G163: 0.217 | H163: 32717.408 | I163: 919032 | J163: 9.478 | K163: 0.106 | L163: 0.607 | M163: 0 | N163: 3 | O163: 0 | P163: 0.1800288046
A164: RB18_00034_24 | B164: 1 | C164: 1 | D164: 11.072 | E164: 5399.286 | F164: 27.849 | G164: 0.179 | H164: 59778.498 | I164: 1679178 | J164: 11.072 | K164: 0.09 | L164: 0.63 | M164: 0 | N164: 1 | O164: 0 | P164: 0.03590793206
A165: RB18_00034_26 | B165: 1 | C165: 1 | D165: 6.301 | E165: 7074.294 | F165: 18.276 | G165: 0.237 | H165: 44576.362 | I165: 1252150 | J165: 9.921 | K165: 0.101 | L165: 0.797 | M165: 1 | N165: 5 | O165: 0.05471656818 | P165: 0.2735828409
A166: RB18_00034_26 | B166: 1 | C166: 1 | D166: 12.033 | E166: 6492.302 | F166: 28.355 | G166: 0.188 | H166: 78120.256 | I166: 2194398 | J166: 9.825 | K166: 0.102 | L166: 0.586 | M166: 1 | N166: 6 | O166: 0.03526714865 | P166: 0.2116028919
A167: RB18_00034_28 | B167: 1 | C167: 1 | D167: 73.087 | E167: 7123.262 | F167: 108.002 | G167: 0.079 | H167: 520614.347 | I167: 14624057 | J167: 17.618 | K167: 0.057 | L167: 0.49 | M167: 3 | N167: 10 | O167: 0.02777726338 | P167: 0.09259087795
A168: RB18_00034_28 | B168: 1 | C168: 1 | D168: 37.914 | E168: 6102.45 | F168: 58.058 | G168: 0.141 | H168: 231367.355 | I168: 6499109 | J168: 12.1 | K168: 0.083 | L168: 0.608 | M168: 0 | N168: 4 | O168: 0 | P168: 0.06889662062
A169: RB18_00034_30 | B169: 1 | C169: 1 | D169: 25.205 | E169: 5586.298 | F169: 30.917 | G169: 0.331 | H169: 140800.961 | I169: 3955099 | J169: 7.206 | K169: 0.139 | L169: 0.798 | M169: 0 | N169: 0 | O169: 0 | P169: 0
A170: RB18_00034_30 | B170: 1 | C170: 1 | D170: 10.538 | E170: 6976.608 | F170: 17.669 | G170: 0.424 | H170: 73516.412 | I170: 2065076 | J170: 4.198 | K170: 0.238 | L170: 0.766 | M170: 0 | N170: 2 | O170: 0 | P170: 0.1131925972
A171: RB18_00034_32 | B171: 1 | C171: 1 | D171: 5.269 | E171: 3708.669 | F171: 12.808 | G171: 0.404 | H171: 19540.157 | I171: 548883 | J171: 4.685 | K171: 0.213 | L171: 0.725 | M171: 0 | N171: 1 | O171: 0 | P171: 0.07807620237
A172: RB18_00034_32 | B172: 1 | C172: 1 | D172: 7.618 | E172: 3119.257 | F172: 17.467 | G172: 0.314 | H172: 23763.653 | I172: 667521 | J172: 6.933 | K172: 0.144 | L172: 0.705 | M172: 0 | N172: 2 | O172: 0 | P172: 0.1145016316
A173: RB18_00034_36 | B173: 1 | C173: 1 | D173: 10.822 | E173: 4079.454 | F173: 22.96 | G173: 0.258 | H173: 44149.306 | I173: 1240154 | J173: 8.477 | K173: 0.118 | L173: 0.667 | M173: 0 | N173: 2 | O173: 0 | P173: 0.08710801394
A174: RB18_00034_36 | B174: 1 | C174: 1 | D174: 9.719 | E174: 3543.212 | F174: 21.474 | G174: 0.265 | H174: 34435.635 | I174: 967297 | J174: 7.556 | K174: 0.132 | L174: 0.739 | M174: 0 | N174: 2 | O174: 0 | P174: 0.09313588526
A175: RB18_00034_38 | B175: 1 | C175: 1 | D175: 9.576 | E175: 4598.535 | F175: 19.713 | G175: 0.31 | H175: 44037.237 | I175: 1237006 | J175: 7.532 | K175: 0.133 | L175: 0.826 | M175: 0 | N175: 0 | O175: 0 | P175: 0
A176: RB18_00034_38 | B176: 1 | C176: 1 | D176: 5.66 | E176: 4537.792 | F176: 13.41 | G176: 0.396 | H176: 25685.618 | I176: 721509 | J176: 5.9 | K176: 0.17 | L176: 0.933 | M176: 0 | N176: 1 | O176: 0 | P176: 0.07457121551
A177: RB18_00034_40 | B177: 1 | C177: 1 | D177: 7.654 | E177: 3456.786 | F177: 16.156 | G177: 0.368 | H177: 26458.135 | I177: 743209 | J177: 5.719 | K177: 0.175 | L177: 0.783 | M177: 0 | N177: 3 | O177: 0 | P177: 0.1856895271
A178: RB18_00034_40 | B178: 1 | C178: 1 | D178: 7.69 | E178: 2923.412 | F178: 19.449 | G178: 0.255 | H178: 22479.779 | I178: 631457 | J178: 9.096 | K178: 0.11 | L178: 0.738 | M178: 0 | N178: 1 | O178: 0 | P178: 0.05141652527
A179: RB18-00031_14 | B179: 1 | C179: 2 | D179: 11.641 | E179: 5976.07 | F179: 13.902 | G179: 0.757 | H179: 69568.352 | I179: 1954175 | J179: 1.788 | K179: 0.559 | L179: 0.933 | M179: 1 | N179: 9 | O179: =M179/F179 -> 0.0719320961 | P179: =N179/F179 -> 0.6473888649
A180: RB18-00031_14 | B180: 1 | C180: 2 | D180: 34.567 | E180: 6589.589 | F180: 50.172 | G180: 0.173 | H180: 227785.368 | I180: 6398491 | J180: 10.31 | K180: 0.097 | L180: 0.584 | M180: 1 | N180: 4 | O180: 0.01993143586 | P180: 0.07972574344
A181: RB19_00034_04 | B181: 1 | C181: 2 | D181: 8.758 | E181: 3566.374 | F181: 22.227 | G181: 0.223 | H181: 31232.752 | I181: 877328 | J181: 8.053 | K181: 0.124 | L181: 0.635 | M181: 0 | N181: 2 | O181: =M181/F181 -> 0 | P181: =N181/F181 -> 0.08998065416
A182: RB19_00034_04 | B182: 1 | C182: 2 | D182: 15.166 | E182: 3797.059 | F182: 15.599 | G182: 0.783 | H182: 57584.443 | I182: 1617547 | J182: 1.799 | K182: 0.556 | L182: 0.95 | M182: 0 | N182: 1 | O182: 0 | P182: 0.0641066735
A183: RB19_00034_10 | B183: 1 | C183: 2 | D183: 26.166 | E183: 3369.888 | F183: 21.59 | G183: 0.705 | H183: 88176.148 | I183: 2476868 | J183: 2.288 | K183: 0.437 | L183: 0.931 | M183: 0 | N183: 3 | O183: 0 | P183: 0.1389532191
A184: RB19_00034_10 | B184: 1 | C184: 2 | D184: 40.157 | E184: 3976.705 | F184: 27.672 | G184: 0.659 | H184: 159691.1 | I184: 4485723 | J184: 2.279 | K184: 0.439 | L184: 0.941 | M184: 1 | N184: 3 | O184: 0.03613761203 | P184: 0.1084128361
A185: RB19_00034_18 | B185: 1 | C185: 2 | D185: 6.728 | E185: 3847 | F185: 12.215 | G185: 0.567 | H185: 25884.051 | I185: 727083 | J185: 3.18 | K185: 0.314 | L185: 0.904 | M185: 2 | N185: 7 | O185: 0.163733115 | P185: 0.5730659026
A186: RB19_00034_18 | B186: 1 | C186: 2 | D186: 11.855 | E186: 3040.033 | F186: 21.322 | G186: 0.328 | H186: 36038.839 | I186: 1012331 | J186: 6.415 | K186: 0.156 | L186: 0.719 | M186: 0 | N186: 4 | O186: 0 | P186: 0.1875996623
A187: RB19_00034_20 | B187: 1 | C187: 2 | D187: 11.819 | E187: 3597.045 | F187: 23.55 | G187: 0.268 | H187: 42514.026 | I187: 1194219 | J187: 5.439 | K187: 0.184 | L187: 0.592 | M187: 0 | N187: 2 | O187: 0 | P187: 0.08492569002
A188: RB19_00034_20 | B188: 1 | C188: 2 | D188: 6.906 | E188: 3123.052 | F188: 17.343 | G188: 0.289 | H188: 21568.957 | I188: 605872 | J188: 6.879 | K188: 0.145 | L188: 0.676 | M188: 0 | N188: 3 | O188: 0 | P188: 0.1729804532
A189: RB19_00034_22 | B189: 1 | C189: 2 | D189: 7.334 | E189: 2097.893 | F189: 15.789 | G189: 0.37 | H189: 15385.048 | I189: 432166 | J189: 4.962 | K189: 0.202 | L189: 0.719 | M189: 0 | N189: 1 | O189: 0 | P189: 0.06333523339
A190: RB19_00034_22 | B190: 1 | C190: 2 | D190: 9.398 | E190: 3774.936 | F190: 17.455 | G190: 0.388 | H190: 35478.213 | I190: 996583 | J190: 3.944 | K190: 0.254 | L190: 0.772 | M190: 1 | N190: 3 | O190: 0.05729017474 | P190: 0.1718705242
A191: RB19_00034_24 | B191: 1 | C191: 2 | D191: 32.111 | E191: 4013.364 | F191: 35.591 | G191: 0.319 | H191: 128873.407 | I191: 3620054 | J191: 7.261 | K191: 0.138 | L191: 0.794 | M191: 0 | N191: 3 | O191: 0 | P191: 0.08429097244
A192: RB19_00034_24 | B192: 1 | C192: 2 | D192: 20.79 | E192: 3166.767 | F192: 36.283 | G192: 0.198 | H192: 65838.092 | I192: 1849392 | J192: 10.659 | K192: 0.094 | L192: 0.681 | M192: 0 | N192: 2 | O192: 0 | P192: 0.05512223355
A193: RB19_00034_26 | B193: 1 | C193: 2 | D193: 4.343 | E193: 3655.205 | F193: 9.761 | G193: 0.573 | H193: 15875.222 | I193: 445935 | J193: 3.082 | K193: 0.324 | L193: 0.847 | M193: 0 | N193: 0 | O193: 0 | P193: 0
A194: RB19_00034_26 | B194: 1 | C194: 2 | D194: 15.628 | E194: 3998.97 | F194: 26.368 | G194: 0.282 | H194: 62497.259 | I194: 1755548 | J194: 7.897 | K194: 0.127 | L194: 0.765 | M194: 1 | N194: 4 | O194: 0.03792475728 | P194: 0.1516990291
A195: RB19_00034_28 | B195: 1 | C195: 2 | D195: 8.615 | E195: 2756.752 | F195: 17.434 | G195: 0.356 | H195: 23749.875 | I195: 667134 | J195: 4.831 | K195: 0.207 | L195: 0.651 | M195: 1 | N195: 3 | O195: 0.05735918321 | P195: 0.1720775496
A196: RB19_00034_28 | B196: 1 | C196: 2 | D196: 14.062 | E196: 4553.967 | F196: 28.778 | G196: 0.213 | H196: 64037.629 | I196: 1798817 | J196: 9.676 | K196: 0.103 | L196: 0.64 | M196: 3 | N196: 4 | O196: 0.1042462993 | P196: 0.1389950657
A197: RB19_00034_32 | B197: 1 | C197: 2 | D197: 7.796 | E197: 2685.16 | F197: 18.29 | G197: 0.293 | H197: 20934.496 | I197: 588050 | J197: 7.498 | K197: 0.133 | L197: 0.675 | M197: 0 | N197: 2 | O197: 0 | P197: 0.1093493712
A198: RB19_00034_32 | B198: 1 | C198: 2 | D198: 5.162 | E198: 2624.566 | F198: 12.952 | G198: 0.387 | H198: 13547.953 | I198: 380562 | J198: 5.207 | K198: 0.192 | L198: 0.72 | M198: 0 | N198: 4 | O198: 0 | P198: 0.3088326127
A199: RB16_00017_07 | B199: 2 | C199: 1 | D199: 19.972 | E199: 4207.813 | F199: 18.803 | G199: 0.71 | H199: 84036.419 | I199: 2360583 | J199: 2.306 | K199: 0.434 | L199: 0.956 | M199: 0 | N199: 2 | O199: =M199/F199 -> 0 | P199: =N199/F199 -> 0.1063660054
A200: RB16_00017_07 | B200: 2 | C200: 1 | D200: 31.755 | E200: 5696.077 | F200: 21.195 | G200: 0.888 | H200: 180879.352 | I200: 5080901 | J200: 1.044 | K200: 0.958 | L200: 0.955 | M200: 0 | N200: 0 | O200: =M200/F200 -> 0 | P200: =N200/F200 -> 0
... 276 more rows
